[Event "AI Cup Div-2 2023"]
[Site "Online"]
[Date "2023.09.27"]
[Round "3.3"]
[White "Sarana, Alexey"]
[Black "Fedoseev, Vladimir"]
[Result "1/2-1/2"]
[ECO "D15"]
[WhiteElo "2693"]
[BlackElo "2683"]
[Annotator "ChessBase"]
[PlyCount "71"]
[EventDate "2023.09.18"]
[EventType "k.o."]
[EventCountry "NET"]
[SourceTitle "playchess.com"]
[Source "ChessBase"]
[SourceQuality "1"]
[TimeControl "900+3"]

1. d4 {[%emt 0:00:04]} d5 {[%emt 0:00:34]} 2. c4 {[%emt 0:00:30]} c6 {[%emt 0:00:02]} 3. Nc3 {[%emt 0:00:00]} Nf6 {[%emt 0:00:07]} 4. Nf3 {[%emt 0:00:10]} dxc4 {[%emt 0:00:09]} 5. g3 {[%emt 0:00:02]} Nbd7 {[%emt 0:00:18]} 6. Bg2 {[%emt 0:00:05]} g6 {[%emt 0:00:16]} 7. O-O {[%emt 0:01:23]} Bg7 {[%emt 0:00:04]} 8. e4 {[%emt 0:00:01]} O-O {[%emt 0:00:39]} 9. Qe2 {[%emt 0:00:22]} Nb6 {[%emt 0:00:59]} 10. h3 {[%emt 0:00:16]} Ne8 {[%emt 0:00:28]} 11. a4 {[%emt 0:00:29]} a5 {[%emt 0:00:03]} 12. Bf4 {[%emt 0:00:49]} f5 {[%emt 0:00:46]} 13. Rfe1 {[%emt 0:00:57]} Nf6 {[%emt 0:00:37]} 14. e5 {[%emt 0:04:04]} Nfd5 {[%emt 0:00:03]} 15. Bg5 {[%emt 0:00:33]} h6 {[%emt 0:00:13]} 16. Bd2 {[%emt 0:00:09]} Be6 {[%emt 0:00:08]} 17. Red1 {[%emt 0:00:39]} Qe8 {[%emt 0:00:21]} 18. Qe1 {[%emt 0:00:13]} Nb4 {[%emt 0:00:11]} 19. Qe2 {[%emt 0:00:03]} Qf7 {[%emt 0:00:20]} 20. Ne1 {[%emt 0:00:42]} Rfd8 {[%emt 0:00:07]} 21. Be3 {[%emt 0:00:04]} N6d5 {[%emt 0:00:07]} 22. Bc1 {[%emt 0:00:05]} Rdb8 {[%emt 0:00:33]} 23. Bf3 {[%emt 0:00:02]} b5 {[%emt 0:00:36]} 24. Ng2 {[%emt 0:00:07]} Nxc3 {[%emt 0:00:44]} 25. bxc3 {[%emt 0:00:01]} Nd5 {[%emt 0:00:00]} 26. Bd2 {[%emt 0:00:20]} b4 {[%emt 0:00:03]} 27. Ne3 {[%emt 0:00:29]} bxc3 {[%emt 0:00:11]} 28. Nxd5 {[%emt 0:00:02]} Bxd5 {[%emt 0:00:16]} 29. Bxc3 {[%emt 0:00:01]} Rb3 {[%emt 0:00:02]} 30. Rdc1 {[%emt 0:00:07]} e6 {[%emt 0:00:01]} 31. Bg2 {[%emt 0:00:10]} Bf8 {[%emt 0:00:08]} 32. Qd2 {[%emt 0:00:14]} Qa7 {[%emt 0:00:44]} 33. Bf1 {[%emt 0:00:14]} Kh7 {[%emt 0:00:09]} 34. Be2 {[%emt 0:00:14]} c5 {[%emt 0:00:11]} 35. Bd1 {[%emt 0:00:02]} Rxc3 {[%emt 0:00:03]} 36. Qxc3 {[%emt 0:00:21]} 1/2-1/2

[Event "AI Cup Div-2 2023"]
[Site "Online"]
[Date "2023.09.27"]
[Round "3.4"]
[White "Andreikin, Dmitry"]
[Black "Artemiev, Vladislav"]
[Result "1-0"]
[ECO "D35"]
[WhiteElo "2729"]
[BlackElo "2697"]
[Annotator "TA"]
[PlyCount "119"]
[EventDate "2023.09.18"]
[EventType "k.o."]
[EventCountry "NET"]
[SourceTitle "playchess.com"]
[Source "ChessBase"]
[SourceQuality "1"]
[TimeControl "900+3"]

{[%evp 15,119,26,14,20,22,9,11,-26,0,-31,4,0,13,-53,11,9,16,28,14,32,29,21,30,-4,0,0,0,-62,-19,-22,-18,-22,0,-8,-6,-10,-10,-14,-9,-9,-15,-8,-12,-83,-98,-92,-11,-99,-70,-67,-50,-81,-72,-80,-25,-14,0,0,0,0,0,0,0,0,22,30,43,46,228,198,404,387,597,497,855,833,863,809,1560,1361,5089,3579,29963,29965,29962,29965,29953,29962,29961,29963,12797,5501,29976,29976,29976,29963,29982,29983,29983,29984,29985,29986,29986,29987,29990,29988]} 1. d4 {[%emt 0:00:04]} Nf6 {[%emt 0:00:20]} 2. c4 {[%emt 0:00:03]} e6 {[%emt 0:00:01]} 3. Nc3 {[%emt 0:00:01]} d5 {[%emt 0:00:31]} 4. cxd5 {[%emt 0:00:37]} exd5 {[%emt 0:00:02]} 5. Bg5 {[%emt 0:00:02]} c6 {[%emt 0:00:04]} 6. e3 {[%emt 0:00:02]} h6 {[%emt 0:00:02]} 7. Bh4 {[%emt 0:00:02]} Be7 {[%emt 0:00:01]} 8. Bd3 {[%emt 0:00:02]} O-O {[%emt 0:00:01]} 9. Nge2 {[%emt 0:00:15] D35: Queen's Gambit Declined: Exchange Variation.} Re8 {[%emt 0:00:16]} 10. h3 $5 {[%emt 0:00:17][%mdl 4] An interesting side line.} a5 {[%emt 0:00:25] [#]} 11. g4 $5 $146 {[%emt 0:00:42][%mdl 8] The position is equal. New and interesting.} ({Predecessor:} 11. Qc2 Na6 12. a3 Nc7 13. g4 Ne6 14. Rd1 b5 15. Kf1 Bd7 16. Kg2 Rc8 17. Bg3 {½-½ Lupulescu,C (2656)-Adams,M (2716) EU-Cup Online Gr-D rapid 2021 (3.1)}) 11... b5 {[%emt 0:01:16][%cal Bb7b5,Bb5b4][%mdl 32]} 12. Rg1 {[%emt 0:00:26]} b4 {[%emt 0:06:14]} 13. Na4 {[%emt 0:00:04]} Ba6 {[%emt 0:00:01]} 14. g5 {[%emt 0:02:14]} (14. Bxa6 $11 Nxa6 15. Rc1) 14... hxg5 {[%emt 0:00:33]} ({Don't do} 14... Ne4 15. Bxe4 hxg5 16. Bf5 Bxe2 17. Qxe2 $14 (17. Kxe2 gxh4 18. Kf1 Bf6 $11)) (14... Nh5 $15) 15. Bxg5 $11 {[%emt 0:00:08]} Bxd3 {[%emt 0:01:01]} 16. Qxd3 {[%emt 0:00:00]} Ne4 {[%emt 0:00:03]} 17. Bxe7 {[%emt 0:00:47]} Qxe7 {[%emt 0:00:05]} 18. Ng3 {[%emt 0:00:32]} Nd7 {[%emt 0:00:55]} 19. Qe2 {[%emt 0:01:17] Strongly threatening Nf5.} (19. Nf5 $2 Qf6 20. f3 (20. Rxg7+ $2 {perishes.} Kf8 $19) 20... Qxf5 $19) 19... g6 {[%emt 0:01:59]} 20. Nxe4 {[%emt 0:01:09]} Qxe4 {[%emt 0:00:38]} 21. O-O-O {[%emt 0:00:02]} (21. Qg4 $11) 21... Rac8 {[%emt 0:00:25] aiming for ...c5.} 22. Qg4 {[%emt 0:01:29] [#]} c5 $1 {[%emt 0:00:18]} 23. Qxe4 {[%emt 0:00:21]} Rxe4 {[%emt 0:00:40]} 24. dxc5 {[%emt 0:00:07]} Nxc5 {[%emt 0:00:00]} 25. Nb6 {[%emt 0:00:04]} Rc6 {[%emt 0:00:05]} 26. Nxd5 {[%emt 0:00:01]} Nd3+ {[%emt 0:00:02][%mdl 64] Discovered Attack (Double check), Double Attack} 27. Kb1 $1 {[%emt 0:00:04]} Nxf2 {[%emt 0:00:01]} 28. Rd2 {[%emt 0:00:42]} Re5 $1 $36 {[%emt 0:00:08][%mdl 2048] Black has some pressure.} (28... Nxh3 $2 29. Rg3 $18) 29. h4 {[%emt 0:01:07]} (29. Nxb4 $11 axb4 30. Rxf2) 29... Ne4 $17 {[%emt 0:00:03]} 30. Rd4 {[%emt 0:00:03]} Nf6 {[%emt 0:00:08]} ({Better is} 30... Kh7 $17) 31. Nf4 {[%emt 0:00:08]} (31. Rg5 $11 {remains equal.} Ree6 32. Nxf6+ Rxf6 33. Rf4) 31... Kh7 {[%emt 0:00:11]} ({But not} 31... Rxe3 $6 32. h5 $11) 32. Re1 {[%emt 0:00:53]} Re4 {[%emt 0:00:02]} (32... Ng4 $5 33. e4 Nf2 $17) 33. Nh3 {[%emt 0:00:14] Black must now prevent Ng5+.} Kg7 {[%emt 0:00:03]} 34. Ng5 {[%emt 0:00:03]} Rxd4 {[%emt 0:00:02]} ({Black should try} 34... Re7 $17) 35. exd4 {[%emt 0:00:01][%mdl 4096] Endgame KRN-KRN} Rd6 {[%emt 0:00:04]} 36. Re7 {[%emt 0:00:10]} Rd7 $1 {[%emt 0:00:00]} (36... Rxd4 $2 37. Ne6+ Kh6 38. Nxd4 $18) 37. Rxd7 {[%emt 0:00:27]} Nxd7 $11 {[%emt 0:00:00] KN-KN} 38. Kc2 {[%emt 0:00:01]} f6 {[%emt 0:00:05]} 39. Ne6+ {[%emt 0:00:09]} Kf7 {[%emt 0:00:01]} 40. Nd8+ {[%emt 0:00:01]} Ke7 {[%emt 0:00:12]} 41. Nc6+ {[%emt 0:00:02]} Kd6 $2 {[%emt 0:00:02] Black cannot hold the game after this.} (41... Kf7 $14) 42. Nxa5 $18 {[%emt 0:00:01]} f5 $2 {[%emt 0:00:04]} (42... Ke6 {might work better.} 43. Nc6 b3+ 44. Kxb3 g5) 43. Nc4+ {[%emt 0:00:45]} Kd5 {[%emt 0:00:02]} (43... Ke6 {keeps fighting.} 44. Kd3 Kf6) 44. Kd3 {[%emt 0:00:01]} f4 {[%emt 0:00:01] [#]} (44... Ke6 $142 45. a4 bxa3 46. bxa3 Kf6) 45. Ne5 $1 {[%emt 0:00:04][%mdl 512]} Nf8 {[%emt 0:00:06]} (45... Nb6 46. Nxg6) 46. a4 {[%emt 0:00:16]} bxa3 {[%emt 0:00:00]} 47. bxa3 {[%emt 0:00:01]} Ne6 {[%emt 0:00:07]} 48. Nxg6 {[%emt 0:00:26]} Nxd4 {[%emt 0:00:01]} 49. Nxf4+ {[%emt 0:00:04]} Ke5 {[%emt 0:00:01]} 50. Ng6+ {[%emt 0:00:21]} Kd5 {[%emt 0:00:01]} 51. h5 {[%emt 0:00:06]} Nf5 {[%emt 0:00:02]} 52. Nf4+ {[%emt 0:00:09]} Ke5 {[%emt 0:00:02] [#]} 53. a4 $1 {[%emt 0:00:12][%cal Ba3a4,Ba4a5,Ba5a6,Ba6a7][%mdl 32] White threatens a5! and mate.} Nd6 {[%emt 0:00:10] [#]} (53... Kd6 54. a5) 54. h6 $1 {[%emt 0:00:05] White mates.} Kf6 {[%emt 0:00:04]} 55. Kd4 {[%emt 0:00:04]} Nf5+ {[%emt 0:00:02]} 56. Kc5 {[%emt 0:00:01]} Nxh6 {[%emt 0:00:01]} 57. a5 {[%emt 0:00:01]} Nf7 {[%emt 0:00:05]} 58. a6 {[%emt 0:00:03]} Ne5 {[%emt 0:00:01]} 59. a7 {[%emt 0:00:04]} Nd7+ {[%emt 0:00:01]} 60. Kb5 {[%emt 0:00:01] Weighted Error Value: White=0.16 (very precise) /Black=0.61} 1-0

[Event "AI Cup Div-2 2023"]
[Site "Online"]
[Date "2023.09.27"]
[Round "3.5"]
[White "Andreikin, Dmitry"]
[Black "Artemiev, Vladislav"]
[Result "1/2-1/2"]
[ECO "D35"]
[WhiteElo "2729"]
[BlackElo "2697"]
[Annotator "TA"]
[PlyCount "290"]
[EventDate "2023.09.18"]
[EventType "k.o."]
[EventCountry "NET"]
[SourceTitle "playchess.com"]
[Source "ChessBase"]
[SourceQuality "1"]
[TimeControl "900+3"]

{[%evp 51,290,-293,-308,-297,-295,-303,-293,-291,-277,-287,-278,-371,-369,-346,-357,-345,-288,-299,-277,-316,-291,-416,-422,-414,-422,-448,-443,-484,-264,-418,-416,-422,-400,-389,-286,-292,-104,-95,-93,-86,-52,-58,-52,-50,-54,-50,-30,-44,0,0,0,0,0,0,0,0,11,11,11,11,11,11,11,11,11,11,20,11,11,11,11,11,11,11,11,11,11,11,23,11,11,11,23,11,11,11,11,11,11,11,11,11,11,11,11,11,11,11,11,11,11,11,11,11,11,11,11,11,11,11,11,11,11,11,11,11,11,11,11,11,11,11,11,11,11,11,11,11,11,11,11,0,0,14,14,0,0,0,0,0,0,0,0,0,0,0,0,0,0,0,0,0,0,0,0,0,0,0,0,0,0,0,0,0,0,0,0,0,0,0,0,0,0,0,0,0,0,0,0,0,0,0,0,0,0,0,0,0,0,0,0,0,0,0,0,0,0,0,0,0,0,0,0,0,0,0,0,0,0,0,0,0,0,0,0,0,0,0,0,0,0,0,0,0,0,0,0,0,0,0,0,0,0,0,0,0,0,0,0,0,0]} 1. d4 {[%emt 0:00:06]} d5 {[%emt 0:04:08]} 2. c4 {[%emt 0:00:06]} e6 {[%emt 0:00:04]} 3. Nc3 {[%emt 0:00:07]} h6 {[%emt 0:00:04]} 4. Nf3 {[%emt 0:00:16]} Nf6 {[%emt 0:00:05]} 5. cxd5 {[%emt 0:00:10]} exd5 {[%emt 0:00:04]} 6. Bf4 {[%emt 0:00:03]} c6 {[%emt 0:00:08]} 7. e3 {[%emt 0:00:29]} Bf5 {[%emt 0:00:06]} 8. Bd3 {[%emt 0:00:38]} Bxd3 {[%emt 0:00:04]} 9. Qxd3 {[%emt 0:00:03]} Nbd7 {[%emt 0:00:04]} 10. O-O-O {[%emt 0:00:10]} Bb4 {[%emt 0:00:11]} 11. Kb1 {[%emt 0:00:09]} Qe7 {[%emt 0:00:22]} 12. Rhf1 {[%emt 0:02:01]} Ne4 {[%emt 0:00:31]} 13. Ne2 {[%emt 0:00:12]} O-O {[%emt 0:01:02]} 14. Ne5 {[%emt 0:00:12]} Nxe5 {[%emt 0:00:56]} 15. Bxe5 {[%emt 0:00:03]} Bd6 {[%emt 0:00:13]} 16. Bf4 {[%emt 0:01:07]} Rfe8 {[%emt 0:00:19]} 17. g3 {[%emt 0:00:40]} Rad8 {[%emt 0:00:17]} 18. Rc1 {[%emt 0:00:43]} Bb4 {[%emt 0:00:27]} 19. Rc2 {[%emt 0:00:04]} g5 {[%emt 0:00:18]} 20. Be5 {[%emt 0:00:06]} f6 {[%emt 0:00:04]} 21. f3 {[%emt 0:00:09]} Nd2+ {[%emt 0:01:04]} 22. Rxd2 {[%emt 0:00:04]} Bxd2 {[%emt 0:00:03]} 23. Bxf6 {[%emt 0:00:18]} Qxf6 {[%emt 0:00:05]} 24. Qxd2 {[%emt 0:00:03]} Qe7 {[%emt 0:00:33]} 25. Qc2 {[%emt 0:00:32]} Qh7 {[%emt 0:00:13]} 26. e4 {[%emt 0:00:06]} dxe4 {[%emt 0:00:04]} 27. f4 {[%emt 0:00:04]} gxf4 {[%emt 0:00:06]} 28. gxf4 {[%emt 0:00:07]} Kh8 {[%emt 0:00:07]} 29. a3 {[%emt 0:00:36]} Rf8 {[%emt 0:00:39]} 30. Qc5 {[%emt 0:00:21]} Qf5 {[%emt 0:00:15]} 31. Qe7 {[%emt 0:00:28]} e3+ {[%emt 0:00:05]} 32. Ka1 {[%emt 0:00:05]} Rde8 {[%emt 0:00:10]} 33. Qxb7 {[%emt 0:00:33]} Qb5 {[%emt 0:00:15]} 34. Qxb5 {[%emt 0:00:04]} cxb5 {[%emt 0:00:04]} 35. Kb1 {[%emt 0:00:04]} Rg8 {[%emt 0:00:12]} 36. Kc2 {[%emt 0:00:11]} (36. Re1 {is a better defense.} Rg2 37. h3) 36... Rg2 $19 {[%emt 0:00:04]} 37. Kd3 {[%emt 0:00:03]} Rxh2 {[%emt 0:00:03]} 38. Rg1 {[%emt 0:00:15]} h5 {[%emt 0:00:18]} 39. d5 {[%emt 0:00:20]} Rg8 {[%emt 0:00:11]} (39... h4 $142 40. b3 h3) 40. Re1 {[%emt 0:01:08]} (40. Rg5 $142) 40... h4 $19 {[%emt 0:00:12]} 41. Nd4 {[%emt 0:00:12]} Rd8 {[%emt 0:00:19]} (41... Rxb2 $2 {too greedy.} 42. Rxe3 b4 43. axb4 $19) 42. Ke4 {[%emt 0:00:14]} e2 {[%emt 0:00:20]} ({Inferior is} 42... Rxb2 43. Rxe3 Kg8 44. Rh3 $17) 43. Nf3 {[%emt 0:00:25]} (43. Rxe2 $2 {loses.} Rxe2+ 44. Nxe2 h3 $19) 43... Rf2 $2 {[%emt 0:00:15]} (43... Re8+ $19 {has better winning chances.} 44. Ne5 Kg7) 44. Ke3 $17 {[%emt 0:00:43]} Rf1 {[%emt 0:00:04]} 45. Rxe2 {[%emt 0:00:04]} Rxd5 {[%emt 0:00:04]} 46. Nxh4 {[%emt 0:00:10]} Rh5 {[%emt 0:00:07]} 47. Ng6+ $1 {[%emt 0:00:13]} Kg7 {[%emt 0:00:04]} 48. Ne5 {[%emt 0:00:03]} Rh4 {[%emt 0:00:14]} 49. Nd3 {[%emt 0:00:11]} Kf6 {[%emt 0:00:04]} 50. Rc2 $1 {[%emt 0:00:07]} Rh3+ {[%emt 0:00:16]} 51. Ke4 {[%emt 0:00:05]} Rxd3 {[%emt 0:00:13]} 52. Kxd3 {[%emt 0:00:23]} Rxf4 {[%emt 0:00:04]} 53. Rc6+ {[%emt 0:00:09]} Ke5 {[%emt 0:00:07]} 54. Rc5+ {[%emt 0:00:04]} Kd6 {[%emt 0:00:04]} 55. Rxb5 {[%emt 0:00:04]} Kc6 {[%emt 0:00:03]} 56. Rh5 {[%emt 0:00:05]} Rf3+ {[%emt 0:00:04]} 57. Kc4 {[%emt 0:00:04]} Rf4+ {[%emt 0:00:03]} 58. Kb3 {[%emt 0:00:04]} Re4 {[%emt 0:00:04]} 59. Kc3 {[%emt 0:00:04]} Kb6 {[%emt 0:00:04]} 60. Rg5 {[%emt 0:00:04]} Rf4 {[%emt 0:00:03]} 61. Re5 {[%emt 0:00:04]} Rf3+ {[%emt 0:00:04]} 62. Kb4 {[%emt 0:00:05]} Rf4+ {[%emt 0:00:03]} 63. Kb3 {[%emt 0:00:04]} Rg4 {[%emt 0:00:04]} 64. Re3 {[%emt 0:00:05]} Kb5 {[%emt 0:00:04]} 65. Rh3 {[%emt 0:00:04]} Kb6 {[%emt 0:00:03]} 66. Rf3 {[%emt 0:00:04]} Kb5 {[%emt 0:00:04]} 67. Rf6 {[%emt 0:00:04]} Rg3+ {[%emt 0:00:09]} 68. Ka2 {[%emt 0:00:03]} a5 {[%emt 0:00:03]} 69. Rh6 {[%emt 0:00:04]} Rf3 {[%emt 0:00:05]} 70. Rh7 {[%emt 0:00:04]} Rg3 {[%emt 0:00:04]} 71. Rh8 {[%emt 0:00:03]} Rf3 {[%emt 0:00:03]} 72. Rg8 {[%emt 0:00:04]} Ka6 {[%emt 0:00:04]} 73. Rg6+ {[%emt 0:00:04]} Kb5 {[%emt 0:00:03]} 74. Rg5+ {[%emt 0:00:04]} Kb6 {[%emt 0:00:04]} 75. Rh5 {[%emt 0:00:04]} Ka6 {[%emt 0:00:04]} 76. Rd5 {[%emt 0:00:04]} Kb6 {[%emt 0:00:03]} 77. Rd2 {[%emt 0:00:04]} Ka6 {[%emt 0:00:04]} 78. Rc2 {[%emt 0:00:03]} Kb5 {[%emt 0:00:03]} 79. Rc8 {[%emt 0:00:04]} Kb6 {[%emt 0:00:04]} 80. Rb8+ {[%emt 0:00:04]} Ka6 {[%emt 0:00:04]} 81. Kb1 {[%emt 0:00:04]} Ka7 {[%emt 0:00:04]} 82. Rd8 {[%emt 0:00:04]} Ka6 {[%emt 0:00:03]} 83. Kc2 {[%emt 0:00:04]} Rf2+ {[%emt 0:00:03]} 84. Kc3 {[%emt 0:00:04]} Kb6 {[%emt 0:00:04]} 85. Rd5 {[%emt 0:00:05]} Rg2 {[%emt 0:00:05]} 86. Rd3 {[%emt 0:00:07]} Rg4 {[%emt 0:00:04]} 87. Re3 {[%emt 0:00:06]} Kb5 {[%emt 0:00:03]} 88. Re5+ {[%emt 0:00:03]} Kb6 {[%emt 0:00:04]} 89. Rh5 {[%emt 0:00:06]} Rf4 {[%emt 0:00:03]} 90. Rh3 {[%emt 0:00:04]} Kb5 {[%emt 0:00:04]} 91. b3 {[%emt 0:00:05]} Kb6 {[%emt 0:00:04]} 92. Rh6+ {[%emt 0:00:04]} Kc5 {[%emt 0:00:04]} 93. a4 {[%emt 0:00:07]} Rf3+ {[%emt 0:00:05]} 94. Kb2 {[%emt 0:00:04]} Rf2+ {[%emt 0:00:06]} 95. Ka3 {[%emt 0:00:04]} Rf5 $1 {[%emt 0:00:04]} 96. Ra6 {[%emt 0:00:07]} Kd4 {[%emt 0:00:03]} 97. Rc6 {[%emt 0:00:04]} Kd5 {[%emt 0:00:06]} 98. Rc8 {[%emt 0:00:04]} Kd6 {[%emt 0:00:04]} 99. Kb2 {[%emt 0:00:04]} (99. b4 $5 {[%cal Rb4b5]}) 99... Kd7 {[%emt 0:00:04]} 100. Rc4 {[%emt 0:00:04]} Kd6 {[%emt 0:00:03]} 101. Kc3 {[%emt 0:00:04]} Rf3+ {[%emt 0:00:04]} 102. Kc2 {[%emt 0:00:03]} Rf2+ {[%emt 0:00:03]} 103. Kc3 {[%emt 0:00:05]} Rf3+ {[%emt 0:00:03]} 104. Kb2 {[%emt 0:00:03]} Rf2+ {[%emt 0:00:03]} 105. Ka3 {[%emt 0:00:04]} Rf5 {[%emt 0:00:06]} 106. Rc1 {[%emt 0:00:04]} Kd7 {[%emt 0:00:03]} 107. Rc2 {[%emt 0:00:06]} Kd6 {[%emt 0:00:04]} 108. Rc8 {[%emt 0:00:04]} Kd7 {[%emt 0:00:04]} 109. Rb8 {[%emt 0:00:03]} Kc6 {[%emt 0:00:03]} 110. Ra8 {[%emt 0:00:05]} Kb7 {[%emt 0:00:04]} 111. Rh8 {[%emt 0:00:05]} Kb6 {[%emt 0:00:03]} 112. Kb2 {[%emt 0:00:03]} Kb7 {[%emt 0:00:04]} 113. Kc3 {[%emt 0:00:04]} Kb6 {[%emt 0:00:03]} 114. Rh6+ {[%emt 0:00:04]} Kb7 {[%emt 0:00:04]} 115. Kc4 {[%emt 0:00:04]} Rf4+ {[%emt 0:00:03]} 116. Kc5 {[%emt 0:00:06]} Rf5+ {[%emt 0:00:04]} 117. Kd4 {[%emt 0:00:05]} Rf4+ {[%emt 0:00:04]} 118. Kd3 {[%emt 0:00:04]} Rf3+ {[%emt 0:00:03]} 119. Kc2 {[%emt 0:00:05]} Rf2+ {[%emt 0:00:04]} 120. Kb1 {[%emt 0:00:03]} Rf3 {[%emt 0:00:03]} 121. Ka2 {[%emt 0:00:04]} Rf2+ {[%emt 0:00:03]} 122. Ka3 {[%emt 0:00:03]} Rf3 {[%emt 0:00:03]} 123. Rg6 {[%emt 0:00:04]} Ka7 {[%emt 0:00:04]} 124. Rc6 {[%emt 0:00:04]} Kb7 {[%emt 0:00:03]} 125. Rc4 {[%emt 0:00:03]} Kb6 {[%emt 0:00:04]} 126. Kb2 {[%emt 0:00:04]} Rf1 {[%emt 0:00:04]} 127. b4 {[%emt 0:00:04]} Rf2+ {[%emt 0:00:03]} 128. Kc3 {[%emt 0:00:04]} axb4+ {[%emt 0:00:03]} 129. Rxb4+ {[%emt 0:00:04]} Ka5 {[%emt 0:00:04]} 130. Rh4 {[%emt 0:00:04]} Rf3+ {[%emt 0:00:04]} 131. Kb2 {[%emt 0:00:04]} Rf5 {[%emt 0:00:03]} 132. Kb3 {[%emt 0:00:05]} Rf3+ {[%emt 0:00:04]} 133. Kc2 {[%emt 0:00:04]} Rf5 {[%emt 0:00:03]} 134. Rc4 {[%emt 0:00:04]} Rd5 {[%emt 0:00:04]} 135. Kc3 {[%emt 0:00:04]} Kb6 {[%emt 0:00:03]} 136. Kb4 {[%emt 0:00:04]} Rd6 {[%emt 0:00:03]} 137. a5+ {[%emt 0:00:04]} Kb7 {[%emt 0:00:04]} 138. Ka4 {[%emt 0:00:03]} Rc6 {[%emt 0:00:03]} 139. Rb4+ {[%emt 0:00:04]} Ka6 {[%emt 0:00:04]} 140. Rh4 {[%emt 0:00:03]} Rd6 {[%emt 0:00:03]} 141. Rb4 {[%emt 0:00:04]} Rc6 {[%emt 0:00:04]} 142. Rd4 {[%emt 0:00:04]} Re6 {[%emt 0:00:04]} 143. Rb4 {[%emt 0:00:03]} Rd6 {[%emt 0:00:04]} 144. Rc4 {[%emt 0:00:04]} Re6 {[%emt 0:00:03]} 145. Rb4 {[%emt 0:00:04]} Rc6 {[%emt 0:00:04]} 1/2-1/2

[Event "AI Cup Div-2 2023"]
[Site "Online"]
[Date "2023.09.28"]
[Round "4.1"]
[White "Fedoseev, Vladimir"]
[Black "Artemiev, Vladislav"]
[Result "1/2-1/2"]
[ECO "A29"]
[WhiteElo "2683"]
[BlackElo "2697"]
[Annotator "TA"]
[PlyCount "88"]
[EventDate "2023.09.18"]
[EventType "k.o."]
[EventCountry "NET"]
[SourceTitle "playchess.com"]
[Source "ChessBase"]
[SourceQuality "1"]
[TimeControl "900+3"]

{[%evp 12,88,22,28,30,8,50,38,29,23,14,26,29,11,17,25,47,42,52,43,54,51,47,39,27,44,45,27,60,49,81,93,100,40,56,51,34,38,81,81,80,80,77,77,74,54,54,54,54,54,70,36,51,30,65,11,14,14,14,14,29,0,0,0,0,0,0,0,33,33,33,0,48,0,48,0,0,0,0]} 1. c4 {[%emt 0:00:08]} e5 {[%emt 0:00:52]} 2. g3 {[%emt 0:00:05]} Nf6 {[%emt 0:00:33]} 3. Bg2 {[%emt 0:00:05]} d5 {[%emt 0:00:01]} 4. cxd5 {[%emt 0:00:08]} Nxd5 {[%emt 0:00:01]} 5. Nf3 {[%emt 0:00:58]} Nc6 {[%emt 0:00:05]} 6. O-O {[%emt 0:00:38]} Nf6 {[%emt 0:00:23]} 7. Nc3 {[%emt 0:00:12]} h6 $1 {[%emt 0:00:01][%mdl 4] is more profitable than 7...Be7 at the moment. A29: English Opening: Four Knights Variation with 4 g3.} 8. b4 {[%emt 0:01:01][%cal Bb2b4,Bb4b5][%mdl 32] b5 would be deadly.} Bd6 {[%emt 0:02:39]} ({Don't play} 8... Nxb4 9. Nxe5 Qd4 10. Qa4+ c6 11. Nxc6 bxc6 12. a3 $16) (8... e4 $5 {[%cal Re4f3]} 9. Ne1 Bxb4 10. Nxe4 Nxe4 11. Bxe4 O-O $11) 9. b5 {[%emt 0:00:11]} Nd4 {[%emt 0:00:02] White is slightly better.} 10. a4 {[%emt 0:00:32]} O-O {[%emt 0:00:23] [#]} 11. Bb2 $146 {[%emt 0:00:45]} ({Predecessor:} 11. d3 a6 12. Bd2 Re8 13. Re1 axb5 14. Nxd4 b4 15. Ndb5 bxc3 16. Bxc3 Bf8 17. a5 {0-1 Nepomniachtchi,I (2771)-Carlsen,M (2839) Speed Chess Chess.com INT blitz 2023 (2.18)}) 11... a6 {[%emt 0:03:16]} 12. d3 {[%emt 0:00:14]} Nxf3+ {[%emt 0:02:34]} 13. Bxf3 {[%emt 0:00:04]} axb5 {[%emt 0:00:14]} 14. Nxb5 {[%emt 0:01:12]} Re8 {[%emt 0:00:10]} 15. Qc2 {[%emt 0:00:06]} c6 {[%emt 0:00:29]} 16. Nxd6 {[%emt 0:00:06]} Qxd6 {[%emt 0:00:00]} 17. Bg2 {[%emt 0:00:57]} Be6 {[%emt 0:00:43]} 18. a5 {[%emt 0:00:43]} Nd5 {[%emt 0:00:38]} 19. Rfc1 {[%emt 0:00:24]} Ra6 {[%emt 0:00:52]} 20. d4 {[%emt 0:01:20]} exd4 {[%emt 0:00:07]} 21. Bxd4 {[%emt 0:00:03] A strong pair of Bishops.} Rea8 {[%emt 0:00:02] [#]} 22. Qb2 {[%emt 0:01:22]} (22. Bc5 $1 $16 {[%cal Rc5d6]} Qd7 23. e4) 22... Qb4 $14 {[%emt 0:00:03]} 23. Qxb4 {[%emt 0:01:18]} Nxb4 {[%emt 0:00:01]} 24. Rab1 {[%emt 0:00:13]} Rxa5 {[%emt 0:00:22]} 25. Rxb4 {[%emt 0:00:36]} c5 {[%emt 0:00:01]} 26. Bxc5 {[%emt 0:00:17]} Rxc5 {[%emt 0:00:02] [#]} 27. Re1 {[%emt 0:00:08]} (27. Rxc5 {is a self mate.} Ra1+) 27... g5 {[%emt 0:00:49]} 28. Rxb7 {[%emt 0:00:16]} Ra2 {[%emt 0:00:03][%cal Oa2e2]} 29. Bf1 {[%emt 0:00:18]} g4 {[%emt 0:00:16]} 30. Rb4 {[%emt 0:00:09]} Kg7 {[%emt 0:00:16]} 31. Rf4 {[%emt 0:00:13]} h5 {[%emt 0:00:09]} 32. h3 {[%emt 0:00:13]} Rca5 {[%emt 0:00:08]} 33. Kh2 {[%emt 0:00:13]} (33. h4 $14) 33... Ra1 $1 $11 {[%emt 0:00:04]} 34. Rxa1 {[%emt 0:00:03]} Rxa1 {[%emt 0:00:00][%mdl 4096] Endgame KRB-KRB} 35. Bg2 {[%emt 0:00:01]} Ra2 {[%emt 0:00:02]} 36. e4 {[%emt 0:00:31]} Ra1 {[%emt 0:00:11]} 37. f3 {[%emt 0:00:31]} gxf3 {[%emt 0:00:06]} 38. Rxf3 {[%emt 0:00:13]} Ra5 {[%emt 0:00:00]} 39. Rf2 {[%emt 0:00:14]} f5 {[%emt 0:00:02]} 40. exf5 {[%emt 0:00:01]} Bxf5 {[%emt 0:00:03][%cal Oh5h4]} 41. Bf3 {[%emt 0:00:01]} Bg6 {[%emt 0:00:02]} (41... h4 $1 $11 {should be considered.}) 42. Re2 {[%emt 0:00:01]} (42. Rd2 $14) 42... Rc5 {[%emt 0:00:02]} (42... Ra3 $11 {is superior.} 43. Bd5 Rd3) 43. Kg2 {[%emt 0:00:03]} (43. h4 $1 $14) 43... h4 {[%emt 0:00:10]} 44. gxh4 {[%emt 0:00:03]} Rc2 {[%emt 0:00:02] Weighted Error Value: White=0.15 (very precise) /Black=0.11 (very precise)} 1/2-1/2